bitfinex/quotes_SOLUSD_20241223
["timestamp","ask_amount","ask_price","bid_price","bid_amount"]
[1734956587415,1.49583129,184.46,184.26,157.0570145]
[1734956587416,6.6538,184.42,184.26,157.0570145]
[1734956587589,0.81445719,184.41,184.27,0.81357927]
[1734956588586,20.0,184.37,184.28,12.7604145]
[1734956588790,6.6538,184.42,184.29,137.51355841]
[1734956588987,0.81445719,184.41,184.29,136.7]
[1734956590106,20.0,184.39,184.29,136.7]
[1734956590286,20.0,184.39,184.3,0.81358024]
[1734956593505,20.0,184.39,184.29,0.8135881]
[1734956593699,0.81445719,184.38,184.29,0.8135881]
[1734956593888,0.81445719,184.38,184.27,0.81367373]
[1734956594491,20.0,184.39,184.27,0.81367373]
[1734956595283,0.81445719,184.38,184.27,0.81367373]
[1734956595483,20.0,184.39,184.27,0.81367373]
[1734956595713,1.5975,184.44,184.28,12.7604145]
[1734956596006,0.81445719,184.43,184.29,0.81345809]
[1734956596708,1.49583129,184.46,184.29,137.51345809]
[1734956596913,20.0,184.44,184.29,136.7]
[1734956597084,0.81445719,184.43,184.29,136.7]
[1734956597405,20.0,184.44,184.29,136.7]
[1734956597597,0.81445719,184.43,184.29,136.7]
[1734956598008,0.81445719,184.43,184.3,0.81340598]
[1734956598521,20.0,184.44,184.3,0.81340598]
[1734956598716,20.0,184.44,184.31,1.6597]
[1734956598886,20.0,184.44,184.32,0.81333636]
[1734956599213,20.0,184.44,184.32,137.51333636]
[1734956599422,20.0,184.44,184.32,136.7]
[1734956600205,20.0,184.4,184.32,136.7]
[1734956600405,20.0,184.44,184.32,136.7]
[1734956600607,20.0,184.44,184.33,0.81333997]
[1734956600998,24.59134119,184.43,184.33,0.81333997]
[1734956601212,20.0,184.4,184.33,0.81333997]
[1734956601414,20.0,184.35,184.31,1.6597]
[1734956601793,23.776884,184.34,184.26,6.0444]
[1734956602010,20.0,184.31,184.26,6.0444]
[1734956605391,20.0,184.31,184.25,2.38144491]
[1734956605392,23.776884,184.3,184.25,2.38144491]
[1734956605597,23.776884,184.3,184.25,1.5676]
[1734956605798,24.59134119,184.3,184.25,1.5676]
[1734956606011,23.776884,184.3,184.25,1.5676]
[1734956606607,20.0,184.36,184.25,1.5676]
[1734956606810,23.776884,184.34,184.25,1.5676]
[1734956607116,0.81445719,184.33,184.25,1.5676]
[1734956607330,23.776884,184.32,184.25,1.5676]
[1734956607621,20.0,184.29,184.25,1.5676]
[1734956607834,20.0,184.31,184.25,1.5676]
[1734956608722,20.0,184.31,184.25,2.38144366]
[1734956609599,20.0,184.31,184.25,1.5676]
[1734956611019,20.0,184.27,184.25,1.5676]
[1734956612099,23.776884,184.31,184.25,1.5676]
[1734956612302,20.0,184.28,184.25,1.5676]
[1734956613123,20.0,184.32,184.25,1.5676]
[1734956613305,23.776884,184.29,184.25,1.5676]
[1734956613817,20.0,184.27,184.25,1.5676]
[1734956616550,23.776884,184.3,184.25,1.5676]
[1734956617035,20.0,184.27,184.25,1.5676]
[1734956617199,23.776884,184.26,184.25,1.5676]
[1734956620128,2.13648153,184.34,184.25,1.5676]
[1734956620324,23.776884,184.32,184.25,1.5676]
[1734956620520,20.0,184.27,184.22,7.07516684]
[1734956620720,0.81445719,184.31,184.17,8.1321]
[1734956620721,20.0,184.23,184.17,8.1321]
[1734956621107,20.0,184.19,184.15,4.56123732]
[1734956621333,20.0,184.19,184.13,13.50763045]
[1734956621503,20.0,184.15,184.13,6.16963732]
[1734956621822,23.776884,184.14,184.13,4.56123732]
[1734956622223,20.0,184.15,184.09,8.47226898]
[1734956622413,23.776884,184.19,184.09,8.47226898]
[1734956622622,20.0,184.14,184.09,8.47226898]
[1734956623027,20.0,184.14,184.08,8.1321]
[1734956623329,20.0,184.14,184.09,0.81450777]
[1734956624236,20.0,184.14,184.08,8.1321]
[1734956627033,20.0,184.14,184.08,8.94665834]
[1734956627532,23.776884,184.17,184.08,8.94665834]
[1734956627734,20.0,184.18,184.08,145.64665834]
[1734956627939,0.81445719,184.24,184.08,144.8321]
[1734956628116,0.81445719,184.24,184.09,13.58299895]
[1734956628320,0.81445719,184.24,184.1,149.46861927]
[1734956628531,0.81445719,184.27,184.13,14.31481927]
[1734956628839,0.81445719,184.27,184.14,0.81414728]
[1734956629540,20.0,184.27,184.14,0.81414728]
[1734956629728,0.81445719,184.26,184.14,0.81414728]
[1734956630128,23.776884,184.25,184.14,0.81414728]
[1734956630327,20.0,184.2,184.15,6.5571]
[1734956630530,20.0,184.2,184.16,0.81418412]
[1734956630926,20.0,184.27,184.15,7.37137628]
[1734956631131,0.81445719,184.26,184.15,7.37137628]
[1734956632243,20.0,184.22,184.15,7.37137628]
[1734956632428,23.776884,184.21,184.15,7.37137628]
[1734956633922,20.0,184.27,184.15,7.37137628]
[1734956634125,0.81445719,184.26,184.15,7.37137628]
[1734956635263,20.0,184.22,184.15,7.37137628]
[1734956635448,23.776884,184.21,184.15,6.5571]
[1734956640738,20.0,184.18,184.13,2.36054327]
[1734956640944,20.0,184.18,184.13,1.5462]
[1734956641660,23.776884,184.21,184.13,1.5462]
[1734956641661,23.776884,184.21,184.13,2.36067323]
[1734956642444,20.81445719,184.27,184.13,139.06067323]
[1734956642759,20.0,184.23,184.13,138.2462]
[1734956642965,0.81445719,184.29,184.14,8.97896089]
[1734956643165,0.81445719,184.29,184.16,8.16475851]
[1734956643461,0.81445719,184.29,184.17,0.8140509]
[1734956644066,0.81445719,184.33,184.19,9.80715851]
[1734956644370,0.81445719,184.33,184.2,8.97864679]
[1734956644552,0.81445719,184.33,184.2,0.81388828]
[1734956645161,0.81445719,184.33,184.2,137.51388828]
[1734956645354,20.81445719,184.33,184.2,136.7]
[1734956645548,0.81445719,184.33,184.2,144.86475851]
[1734956645960,0.81445719,184.35,184.2,144.86475851]
[1734956646354,0.81445719,184.35,184.2,149.44521947]
[1734956646558,0.81445719,184.35,184.21,0.81390019]
[1734956647144,20.0,184.33,184.21,0.81390019]
[1734956647340,23.776884,184.34,184.22,1.569]
[1734956647544,20.0,184.31,184.23,0.81381752]
[1734956648265,23.776884,184.34,184.24,6.465]
[1734956648471,3.97713938,184.38,184.25,0.81370333]
[1734956648772,0.81445719,184.37,184.25,0.81370333]
[1734956648969,3.97713938,184.38,184.26,1.569]
[1734956649151,5.93796671,184.41,184.27,13.55882854]
[1734956649355,5.37926836,184.43,184.29,143.165]
[1734956649563,5.37926836,184.43,184.3,0.8134769]
[1734956649949,8.92825202,184.43,184.3,0.8134769]
[1734956650145,11.17353418,184.42,184.29,6.465]
[1734956650359,1.40212898,184.41,184.29,6.465]
[1734956650665,5.96694015,184.41,184.29,6.465]
[1734956651259,23.776884,184.37,184.29,6.465]
[1734956651465,20.0,184.34,184.29,6.465]
[1734956651667,24.59134119,184.37,184.29,6.465]
[1734956651965,20.0,184.34,184.29,6.465]
[1734956653769,20.0,184.39,184.3,0.8136343]
[1734956653970,0.81445719,184.41,184.3,0.8136343]
[1734956654684,0.81445719,184.41,184.29,6.465]
[1734956654898,31.89067883,184.4,184.29,6.465]
[1734956655072,23.776884,184.38,184.29,6.465]
[1734956655386,23.776884,184.36,184.29,6.465]
[1734956655594,20.0,184.33,184.29,6.465]
[1734956655794,20.0,184.37,184.29,6.465]
[1734956655951,20.0,184.37,184.29,7.27865429]
[1734956657963,20.0,184.37,184.29,6.465]
[1734956659166,20.0,184.41,184.3,0.81365284]
[1734956659569,0.81445719,184.43,184.31,1.5954]
[1734956659988,0.81445719,184.43,184.32,0.81352224]
[1734956660694,23.776884,184.42,184.32,0.81352224]
[1734956661373,12.01340869,184.44,184.32,150.25874171]
[1734956661592,12.01340869,184.44,184.32,149.44521947]
[1734956662787,23.776884,184.43,184.33,0.81342344]
[1734956662987,20.0,184.4,184.33,0.81342344]
[1734956663588,20.0,184.4,184.32,0.8134989]
[1734956663884,24.59134119,184.39,184.31,1.5954]
[1734956664069,20.0,184.36,184.31,1.5954]
[1734956665603,23.776884,184.35,184.31,1.5954]
[1734956667791,20.0,184.36,184.31,1.5954]
[1734956667979,23.776884,184.4,184.31,1.5954]
[1734956668173,20.0,184.37,184.31,1.5954]
[1734956668863,23.776884,184.36,184.31,1.5954]
[1734956669695,20.0,184.41,184.31,1.5954]
[1734956669891,0.81445719,184.43,184.31,2.40896051]
[1734956670088,0.81445719,184.42,184.31,2.40896051]
[1734956671001,20.0,184.41,184.31,2.40896051]
[1734956671170,0.81445719,184.43,184.31,2.40896051]
[1734956671892,23.776884,184.42,184.31,2.40896051]
[1734956672096,0.81445719,184.41,184.31,2.40896051]
[1734956672284,23.776884,184.4,184.31,2.40896051]
[1734956672487,0.81445719,184.39,184.31,2.40896051]
[1734956673199,23.776884,184.4,184.31,2.40896051]
[1734956674697,0.81445719,184.43,184.31,139.10896051]
[1734956675006,20.0,184.41,184.32,6.3479]
[1734956675184,20.0,184.41,184.33,0.81342832]
[1734956677001,20.0,184.41,184.33,13.55864779]
[1734956677182,20.0,184.41,184.34,1.6263]
[1734956677382,20.0,184.41,184.35,0.81330737]
[1734956678279,0.6813741,184.46,184.35,0.81330737]
[1734956679597,0.6813741,184.46,184.34,138.3263]
[1734956679807,20.81445719,184.45,184.34,138.3263]
[1734956680279,23.776884,184.44,184.34,138.3263]
[1734956680492,20.0,184.41,184.34,1.6263]
[1734956680828,23.776884,184.4,184.34,1.6263]
[1734956681122,20.0,184.37,184.34,1.6263]
[1734956681516,23.776884,184.4,184.34,1.6263]
[1734956681928,20.0,184.37,184.34,1.6263]
[1734956683712,23.776884,184.36,184.34,1.6263]
[1734956683925,23.776884,184.36,184.29,0.81358073]
[1734956683926,20.0,184.33,184.29,1.5835]
[1734956684088,23.776884,184.32,184.29,1.5835]
[1734956688839,0.81445719,184.31,184.24,1.6302]
[1734956689125,23.776884,184.3,184.24,1.6302]
[1734956689799,23.776884,184.3,184.24,2.44410779]
[1734956690122,0.81445719,184.39,184.24,2.44410779]
[1734956690328,20.0,184.35,184.24,15.18932726]
[1734956690527,20.0,184.31,184.24,15.18932726]
[1734956691409,20.0,184.31,184.25,2.69364759]
[1734956691602,20.0,184.31,184.26,0.8137667]
[1734956692325,23.776884,184.34,184.26,0.8137667]
[1734956693226,0.81445719,184.33,184.24,1.6302]
[1734956693394,20.0,184.42,184.24,1.6302]
[1734956693395,0.81445719,184.41,184.24,1.6302]
[1734956694126,2.86680411,184.41,184.24,1.6302]
[1734956694513,43.776884,184.4,184.24,1.6302]
[1734956694721,23.776884,184.34,184.24,1.6302]
[1734956694895,20.0,184.31,184.24,1.6302]
[1734956695098,23.776884,184.3,184.24,1.6302]
[1734956697421,23.776884,184.28,184.24,1.6302]
[1734956697818,0.81445719,184.39,184.24,1.6302]
[1734956698127,23.776884,184.34,184.24,1.6302]
[1734956698422,20.0,184.31,184.24,1.6302]
[1734956698636,23.776884,184.3,184.24,1.6302]
[1734956699928,20.0,184.37,184.25,0.81385314]
[1734956700114,23.776884,184.31,184.25,0.81385314]
[1734956700706,0.81445719,184.36,184.25,0.81385314]
[1734956701005,23.776884,184.35,184.25,0.81385314]
[1734956702127,0.81445719,184.39,184.25,13.55907261]
[1734956702312,0.81445719,184.39,184.27,12.74521947]
[1734956702516,1.6399,184.44,184.28,0.81357492]
[1734956702517,0.81445719,184.43,184.28,0.81357492]
[1734956703723,20.0,184.38,184.28,0.81357492]
[1734956704025,23.776884,184.37,184.28,0.81357492]
[1734956706030,24.59134119,184.37,184.26,0.81365901]
[1734956706660,20.0,184.34,184.26,0.81365901]
[1734956707010,20.0,184.34,184.25,0.81376575]
[1734956707430,23.776884,184.33,184.25,0.81376575]
[1734956707642,24.59134119,184.33,184.25,0.81376575]
[1734956707817,24.59134119,184.33,184.24,1.6302]
[1734956707818,20.0,184.3,184.24,1.6302]
[1734956709218,0.81445719,184.43,184.25,0.81383424]
[1734956709419,20.0,184.37,184.25,0.81383424]
[1734956709734,20.0,184.33,184.25,0.81383424]
[1734956709934,20.0,184.37,184.25,0.81383424]
[1734956710435,23.776884,184.36,184.25,0.81383424]
[1734956710636,24.59134119,184.36,184.25,0.81383424]
[1734956710811,2.12260378,184.43,184.26,2.69343282]
[1734956710812,20.0,184.42,184.26,2.69343282]
[1734956711011,0.81445719,184.41,184.27,0.8136474]
[1734956711942,23.776884,184.4,184.27,0.8136474]
[1734956712146,20.0,184.35,184.27,0.8136474]
[1734956712524,24.59134119,184.34,184.25,136.7]
[1734956712924,24.59134119,184.34,184.26,0.81379631]
[1734956713443,23.776884,184.3,184.24,1.6302]
[1734956713642,24.59134119,184.3,184.24,1.6302]
[1734956714017,20.0,184.27,184.24,1.6302]
[1734956714218,23.776884,184.26,184.24,1.6302]
[1734956714928,20.0,184.23,184.19,1.545]
[1734956715147,23.776884,184.22,184.19,1.545]
[1734956717644,1.6338,184.35,184.19,15.11056525]
[1734956717846,0.81445719,184.34,184.19,15.11056525]
[1734956718057,0.81445719,184.34,184.2,2.6913109]
[1734956718230,0.81445719,184.34,184.21,0.81400293]
[1734956718847,20.81445719,184.34,184.21,0.81400293]
[1734956719037,0.81445719,184.34,184.21,0.81400293]
[1734956719237,0.81445719,184.36,184.21,0.81400293]
[1734956720253,20.0,184.32,184.21,0.81400293]
[1734956720458,23.776884,184.3,184.21,0.81400293]
[1734956720652,23.776884,184.3,184.21,13.5652986]
[1734956721250,23.776884,184.3,184.21,0.81400293]
[1734956721457,0.81445719,184.36,184.21,0.81400293]
[1734956721688,23.776884,184.35,184.22,2.69125302]
[1734956721849,23.776884,184.35,184.23,0.81392074]
[1734956721850,20.0,184.32,184.23,0.81392074]
[1734956722152,23.776884,184.31,184.23,0.81392074]
[1734956722557,24.59134119,184.31,184.23,0.81392074]
[1734956722941,24.59134119,184.31,184.21,0.81393639]
[1734956723641,24.42913679,184.31,184.21,0.81393639]
[1734956724232,23.6146796,184.31,184.21,0.81393639]
[1734956724428,0.81445719,184.37,184.22,7.7859]
[1734956724751,0.81445719,184.37,184.23,13.56505129]
[1734956725144,0.81445719,184.37,184.23,0.81375562]
[1734956725832,20.0,184.33,184.23,0.81375562]
[1734956727754,20.0,184.38,184.23,150.26505129]
[1734956727940,0.81445719,184.37,184.23,149.45129567]
[1734956728460,0.81445719,184.4,184.25,12.75129567]
[1734956728660,0.81445719,184.4,184.26,0.81364857]
[1734956729532,7.30201706,184.4,184.24,1.5673]
[1734956729762,20.0,184.32,184.24,1.5673]
[1734956731855,24.59134119,184.31,184.24,1.5673]
[1734956732061,20.0,184.28,184.24,1.5673]
[1734956732254,23.776884,184.26,184.24,1.5673]
[1734956732456,0.81445719,184.25,184.22,6.2721]
[1734956732662,23.776884,184.24,184.19,1.5787]
[1734956733249,23.776884,184.26,184.19,1.5787]
[1734956735454,0.81445719,184.32,184.2,0.81406056]
[1734956735645,20.0,184.28,184.2,0.81406056]
[1734956735959,0.81445719,184.34,184.2,0.81406056]
[1734956736351,0.81445719,184.34,184.21,2.69765443]
[1734956737040,23.776884,184.33,184.2,0.81406056]
[1734956737234,20.0,184.28,184.2,0.81406056]
[1734956738253,20.0,184.26,184.21,2.6977583]
[1734956738950,20.0,184.26,184.19,1.5787]
[1734956739657,20.0,184.26,184.2,0.81406639]
[1734956739848,4.4380029,184.37,184.21,0.81411196]
[1734956740048,2.32475719,184.37,184.21,13.56540763]
[1734956740563,2.32475719,184.37,184.21,0.81411196]
[1734956740755,2.32475719,184.37,184.19,138.2787]
[1734956740756,9.62677425,184.37,184.19,138.2787]
[1734956740966,7.30201706,184.36,184.19,1.5787]
[1734956741262,23.776884,184.34,184.19,1.5787]
[1734956741472,23.776884,184.3,184.19,1.5787]
[1734956741680,23.776884,184.28,184.19,1.5787]
[1734956741842,23.776884,184.24,184.19,1.5787]
[1734956743359,23.776884,184.22,184.19,1.5787]
[1734956748762,23.776884,184.23,184.19,1.5787]
[1734956749978,23.776884,184.24,184.19,1.5787]
[1734956750278,24.59134119,184.24,184.19,1.5787]
[1734956750973,23.776884,184.24,184.19,1.5787]
[1734956751279,0.81445719,184.35,184.19,1.5787]
[1734956751460,0.81445719,184.35,184.2,0.81406645]
[1734956752578,0.81445719,184.35,184.21,12.75129567]
[1734956752778,0.81445719,184.35,184.22,0.81392294]
[1734956752962,0.81445719,184.35,184.23,1.5192]
[1734956753158,0.81445719,184.37,184.25,6.2299]
[1734956753370,0.81445719,184.37,184.26,0.81379135]
[1734956753577,0.81445719,184.39,184.26,0.81379135]
[1734956754558,0.81445719,184.4,184.26,0.81379135]
[1734956755259,20.0,184.38,184.26,0.81379135]
[1734956755474,0.81445719,184.37,184.26,0.81379135]
[1734956755787,20.0,184.33,184.26,0.81379135]
[1734956756367,20.0,184.33,184.27,1.5805]
[1734956756566,20.0,184.33,184.28,0.813645]
[1734956758703,23.776884,184.36,184.28,0.813645]
[1734956761318,0.81445719,184.35,184.27,2.39422989]
[1734956761614,23.776884,184.36,184.27,2.39422989]
[1734956762695,0.81445719,184.41,184.27,151.84552556]
[1734956762900,14.71731513,184.47,184.23,12.75129567]
[1734956762901,0.81445719,184.43,184.31,149.45129567]
[1734956763083,12.69371817,184.46,184.33,12.75129567]
[1734956763410,12.69371817,184.46,184.34,0.81330257]
[1734956763604,12.69371817,184.46,184.33,136.7]
[1734956764184,23.776884,184.45,184.33,136.7]
[1734956764405,20.0,184.4,184.34,0.81350209]
[1734956764603,23.776884,184.41,184.34,0.81350209]
[1734956764816,23.776884,184.43,184.34,0.81350209]
[1734956765120,0.81445719,184.45,184.34,0.81350209]
[1734956765483,11.87926098,184.46,184.33,137.51336144]
[1734956765686,11.87926098,184.46,184.34,14.36759567]
[1734956765894,11.87926098,184.46,184.35,0.81323568]
[1734956766103,0.6813741,184.46,184.35,0.81323568]
[1734956766303,0.6813741,184.46,184.36,6.1814]
[1734956766512,0.6813741,184.46,184.37,0.81322557]
[1734956769308,0.6813741,184.46,184.38,1.5038]
[1734956769514,0.6813741,184.46,184.39,0.81325255]
[1734956772917,0.6813741,184.46,184.39,13.56454822]
[1734956773216,0.6813741,184.46,184.41,1.554]
[1734956773440,0.6813741,184.46,184.42,0.812936]
[1734956775220,0.6813741,184.46,184.41,1.554]
[1734956780230,20.0,184.42,184.36,1.6249]
[1734956780406,24.59134119,184.41,184.36,1.6249]
[1734956780747,20.0,184.38,184.36,1.6249]
[1734956784028,24.59134119,184.37,184.32,1.5633]
[1734956786110,20.0,184.34,184.32,1.5633]
[1734956792908,20.0,184.41,184.32,1.5633]
[1734956793127,0.81445719,184.4,184.32,1.5633]
[1734956794333,23.776884,184.39,184.32,1.5633]
[1734956795758,20.0,184.36,184.32,1.5633]
[1734956804571,20.0,184.32,184.28,1.6436]
[1734956805146,20.0,184.32,184.23,1.6505]
[1734956805147,24.59134119,184.31,184.23,1.6505]
[1734956805550,20.0,184.28,184.23,1.6505]
[1734956805771,24.59134119,184.31,184.23,1.6505]
[1734956805959,20.0,184.39,184.24,0.81390265]
[1734956806164,23.776884,184.34,184.24,0.81390265]
[1734956806349,20.0,184.31,184.24,0.81390265]
[1734956818873,20.0,184.31,184.23,1.6505]
[1734956820070,20.0,184.31,184.23,2.46440919]
[1734956820480,23.776884,184.34,184.23,2.46440919]
[1734956821771,23.776884,184.32,184.23,1.6505]
[1734956822090,23.776884,184.3,184.23,1.6505]
[1734956822275,0.81445719,184.29,184.23,1.6505]
[1734956823289,23.776884,184.28,184.23,1.6505]
[1734956823494,20.0,184.34,184.23,1.6505]
[1734956823696,23.776884,184.32,184.23,1.6505]
[1734956823870,20.0,184.29,184.23,1.6505]
[1734956824773,0.81445719,184.36,184.23,9.80243282]
[1734956824966,6.47187328,184.43,184.23,9.80243282]
[1734956824967,0.81445719,184.41,184.27,16.34213282]
[1734956825188,0.81445719,184.41,184.28,0.81363282]
[1734956826179,20.81445719,184.41,184.28,8.96556564]
[1734956826483,20.81445719,184.41,184.28,0.81363282]
[1734956827197,23.776884,184.4,184.28,0.81363282]
[1734956827383,20.0,184.37,184.28,0.81363282]
[1734956828185,0.81445719,184.43,184.28,8.96556564]
[1734956828507,0.81445719,184.43,184.29,8.15193282]
[1734956828684,0.81445719,184.43,184.31,1.5435]
[1734956828998,0.81445719,184.43,184.32,0.81351323]
[1734956829203,23.776884,184.42,184.32,0.81351323]
[1734956829399,20.0,184.39,184.31,2.35701957]
[1734956829697,23.776884,184.38,184.31,1.5435]
[1734956829915,23.776884,184.36,184.31,1.5435]
[1734956830095,20.0,184.33,184.31,1.5435]
[1734956830886,24.59134119,184.32,184.27,1.5435]
[1734956831409,23.776884,184.28,184.22,1.5545]
[1734956831599,23.776884,184.26,184.22,1.5545]
[1734956831778,23.776884,184.24,184.22,1.5545]
[1734956832802,0.81445719,184.23,184.19,6.444]
[1734956834778,23.776884,184.24,184.19,6.444]
[1734956835497,0.81445719,184.23,184.19,6.444]
[1734956837111,23.776884,184.24,184.19,6.444]
[1734956837803,0.81445719,184.23,184.19,6.444]
[1734956838323,0.81445719,184.23,184.17,1.5668]
[1734956840126,20.0,184.21,184.17,1.5668]
[1734956840619,0.81445719,184.2,184.14,6.1189]
[1734956841906,0.81445719,184.2,184.12,1.5914]
[1734956842627,23.776884,184.19,184.12,1.5914]
[1734956842818,0.81445719,184.18,184.12,1.5914]
[1734956843919,24.59134119,184.2,184.12,1.5914]
[1734956844117,20.0,184.27,184.13,0.81449412]
[1734956844413,0.81445719,184.26,184.13,13.56859581]
[1734956844620,0.81445719,184.26,184.14,12.75410169]
[1734956844819,0.81445719,184.29,184.15,0.81420269]
[1734956845922,0.81445719,184.29,184.19,12.75410169]
[1734956846124,0.81445719,184.34,184.2,0.81402058]
[1734956846997,23.776884,184.33,184.17,0.81404708]
[1734956847200,20.0,184.26,184.17,0.81404708]
[1734956848208,20.0,184.3,184.17,0.81404708]
[1734956848509,23.776884,184.28,184.17,0.81404708]
[1734956849401,23.776884,184.31,184.21,1.6381]
[1734956849725,20.0,184.28,184.22,0.81396444]
[1734956850231,20.0,184.29,184.22,0.81396444]
[1734956857347,0.81445719,184.31,184.22,0.81396444]
[1734956857638,20.0,184.29,184.22,0.81396444]
[1734956858931,0.81445719,184.31,184.22,0.81396444]
[1734956859133,23.776884,184.32,184.22,0.81396444]
[1734956860514,0.81445719,184.35,184.23,6.0364]
[1734956860708,23.776884,184.34,184.24,0.81383091]
[1734956861033,9.74102527,184.4,184.25,1.5442]
[1734956861228,0.81445719,184.39,184.26,0.8137351]
[1734956861418,0.81445719,184.39,184.25,1.5442]
[1734956861614,6.5642636,184.38,184.25,1.5442]
[1734956861819,0.81445719,184.37,184.25,1.5442]
[1734956862015,23.776884,184.36,184.25,1.5442]
[1734956862229,20.0,184.33,184.2,1.6607]
[1734956862428,23.776884,184.31,184.2,1.6607]
[1734956862611,20.0,184.24,184.2,1.6607]
[1734956863845,8.0107,184.32,184.2,1.6607]
[1734956864040,20.0,184.29,184.2,1.6607]
[1734956864218,20.0,184.29,184.21,0.81405941]
[1734956864420,20.81445719,184.29,184.21,0.81405941]
[1734956864752,20.0,184.29,184.21,0.81405941]
[1734956865526,20.81445719,184.29,184.21,0.81405941]
[1734956865926,20.0,184.29,184.21,0.81405941]
[1734956866541,20.81445719,184.29,184.21,0.81405941]
[1734956866749,20.81445719,184.29,184.2,1.6607]
[1734956866927,20.0,184.29,184.21,0.81401636]
[1734956867952,20.0,184.34,184.21,0.81401636]
[1734956868114,20.0,184.29,184.21,0.81401636]
[1734956871343,0.81445719,184.28,184.2,1.6607]
[1734956871544,20.0,184.24,184.2,1.6607]
[1734956871753,0.81445719,184.23,184.2,1.6607]
[1734956872335,23.776884,184.22,184.15,1.6395]
[1734956872535,0.81445719,184.21,184.15,1.6395]
[1734956881538,0.81445719,184.23,184.15,1.6395]
[1734956882049,24.59134119,184.25,184.15,1.6395]
[1734956882251,20.0,184.22,184.15,1.6395]
[1734956888062,0.81445719,184.21,184.15,1.6395]
[1734956888556,23.776884,184.2,184.15,1.6395]
[1734956888745,0.81445719,184.19,184.15,1.6395]
[1734956891555,24.59134119,184.21,184.15,1.6395]
[1734956891957,0.81445719,184.21,184.15,1.6395]
[1734956892170,0.81445719,184.25,184.15,1.6395]
[1734956892951,0.81445719,184.25,184.15,2.45381986]
[1734956893256,0.81445719,184.27,184.16,8.16460195]
[1734956893458,0.81445719,184.31,184.17,0.81415672]
[1734956893676,0.81445719,184.31,184.16,2.69163127]
[1734956894441,0.81445719,184.33,184.18,7.586]
[1734956894643,0.81445719,184.33,184.19,0.81405138]
[1734956894848,0.81445719,184.33,184.2,1.5695]
[1734956895154,0.81445719,184.33,184.21,8.97864886]
[1734956895342,0.81445719,184.37,184.21,8.97864886]
[1734956895782,0.81445719,184.37,184.23,8.16460195]
[1734956895947,0.81445719,184.37,184.25,9.71030195]
[1734956896150,0.81445719,184.39,184.26,0.81370434]
[1734956897159,20.0,184.39,184.26,0.81370434]
[1734956897455,0.81445719,184.38,184.26,0.81370434]
[1734956897862,20.0,184.34,184.26,137.51370434]
[1734956898055,0.81445719,184.41,184.26,136.7]
[1734956898275,20.0,184.39,184.26,149.43552439]
[1734956898476,0.81445719,184.38,184.26,149.43552439]
[1734956898846,0.81445719,184.41,184.26,149.43552439]
[1734956899287,23.776884,184.4,184.26,149.43552439]
[1734956899586,0.81445719,184.39,184.27,0.81363921]
[1734956899951,20.0,184.37,184.27,0.81363921]
[1734956900667,20.0,184.37,184.27,13.5491636]
[1734956901371,20.0,184.37,184.27,0.81363921]
[1734956902072,0.81445719,184.36,184.27,0.81363921]
[1734956902276,20.0,184.37,184.27,0.81363921]
[1734956902482,20.0,184.37,184.27,13.5491636]
[1734956902646,20.0,184.37,184.28,20.32382439]
[1734956902848,20.0,184.37,184.29,0.8135995]
[1734956903145,0.81445719,184.36,184.28,8.40190418]
[1734956903354,0.81445719,184.36,184.28,8.40204765]
[1734956903771,20.0,184.37,184.28,8.40204765]
[1734956903979,23.776884,184.36,184.28,8.40204765]
[1734956904177,20.0,184.37,184.28,8.40204765]
[1734956904788,23.776884,184.38,184.28,8.40204765]
[1734956904996,0.81445719,184.39,184.28,21.13757204]
[1734956908698,0.81445719,184.39,184.28,8.40204765]
[1734956909712,23.776884,184.38,184.28,8.40204765]
[1734956909875,0.81445719,184.37,184.28,7.5883]
[1734956910200,0.81445719,184.37,184.28,8.40201525]
[1734956910570,20.0,184.35,184.28,7.5883]
[1734956910779,0.81445719,184.34,184.28,7.5883]
[1734956914770,23.776884,184.33,184.28,7.5883]
[1734956914977,0.81445719,184.32,184.28,7.5883]